fUST/lending_fUST_20250726
["ID","MTS","AMOUNT","RATE_DAILY","PERIOD"]
[375086166,1753522248130,-421.487,0.00020038,2]
[375086168,1753522248140,-369.0,0.00020042,2]
[375086170,1753522248150,-369.0,0.00020076,2]
[375086172,1753522248159,-369.0,0.00020106,2]
[375086174,1753522248169,-500.48698167,0.00020155,2]
[375086176,1753522248178,-152.35185347,0.00020155,2]
[375086178,1753522248188,-500.0,0.00020155,2]
[375086180,1753522248198,-500.0,0.00020155,2]
[375086182,1753522248209,-500.0,0.00020155,2]
[375086184,1753522248218,-233.46432429,0.00020155,2]
[375086186,1753522248228,-500.0,0.00020155,2]
[375086188,1753522248237,-274.68370452,0.00020155,2]
[375086190,1753522248246,-500.0,0.00020161,2]
[375086192,1753522248256,-500.0,0.00020161,2]
[375086193,1753522248266,-369.0,0.00020165,2]
[375086194,1753522248276,-246.81739548,0.00020173,2]
[375086195,1753522248285,-194.351024,0.00020187,2]
[375086196,1753522248295,-369.0,0.00020189,2]
[375086197,1753522248305,-5888.0,0.00020197,2]
[375086198,1753522248315,-151.0,0.00020197,2]
[375086199,1753522248336,-151.0,0.00020197,2]
[375086200,1753522248354,-151.0,0.00020197,2]
[375086201,1753522248365,-151.0,0.00020197,2]
[375086203,1753522248375,-151.0,0.00020197,2]
[375086205,1753522248384,-151.0,0.00020197,2]
[375086207,1753522248394,-369.0,0.00020206,2]
[375086209,1753522248403,-203.0,0.00020219,2]
[375086211,1753522248413,-369.0,0.0002026,2]
[375086213,1753522248422,-369.0,0.00020271,2]
[375086215,1753522248432,-151.0,0.00020273,2]
[375086217,1753522248441,-151.0,0.00020273,2]
[375086219,1753522248450,-151.0,0.00020273,2]
[375086221,1753522248459,-151.0,0.00020273,2]
[375086223,1753522248468,-151.0,0.00020273,2]
[375086225,1753522248482,-460.0,0.00020273,2]
[375086227,1753522248491,-490.1,0.00020273,2]
[375086229,1753522248500,-460.0,0.00020273,2]
[375086231,1753522248510,-460.0,0.00020273,2]
[375086233,1753522248520,-760.947282,0.00020273,2]
[375086234,1753522248529,-760.947282,0.00020273,2]
[375086237,1753522248539,-760.947282,0.00020273,2]
[375086239,1753522248548,-760.947282,0.00020273,2]
[375086241,1753522248558,-151.0,0.00020273,2]
[375086243,1753522248568,-154.60335011,0.00020273,2]
[375086245,1753522248578,-151.0,0.00020273,2]
[375086247,1753522248587,-299.185893,0.00020273,2]
[375086249,1753522248597,-460.0,0.00020273,2]
[375086251,1753522248607,-460.0,0.00020273,2]
[375086253,1753522248616,-151.0,0.00020273,2]
[375086255,1753522248626,-460.0,0.00020273,2]
[375086257,1753522248635,-151.0,0.00020273,2]
[375086259,1753522248644,-151.0,0.00020273,2]
[375086261,1753522248653,-460.0,0.00020273,2]
[375086263,1753522248663,-151.0,0.00020273,2]
[375086265,1753522248673,-460.0,0.00020273,2]
[375086267,1753522248682,-460.0,0.00020273,2]
[375086269,1753522248691,-661.68,0.00020273,2]
[375086271,1753522248701,-460.0,0.00020273,2]
[375086273,1753522248710,-448.91786697,0.00020273,2]
[375086275,1753522248720,-151.0,0.00020273,2]
[375086277,1753522248731,-460.0,0.00020273,2]
[375086279,1753522248741,-460.0,0.00020273,2]
[375086281,1753522248751,-460.0,0.00020273,2]
[375086283,1753522248760,-256.3695,0.00020273,2]
[375086285,1753522248770,-582.45,0.00020273,2]
[375086287,1753522248781,-460.0,0.00020273,2]
[375086289,1753522248790,-1208.67,0.00020273,2]
[375086291,1753522248800,-460.0,0.00020273,2]
[375086293,1753522248809,-460.0,0.00020273,2]
[375086295,1753522248819,-1010.11,0.00020273,2]
[375086297,1753522248829,-460.0,0.00020273,2]
[375086299,1753522248838,-460.0,0.00020273,2]
[375086301,1753522248848,-460.0,0.00020273,2]
[375086303,1753522248857,-460.0,0.00020273,2]
[375086305,1753522248867,-460.0,0.00020273,2]
[375086307,1753522248876,-460.0,0.00020273,2]
[375086309,1753522248886,-151.0,0.00020273,2]
[375086311,1753522248896,-460.0,0.00020273,2]
[375086313,1753522248906,-204.805823,0.00020273,2]
[375086315,1753522248915,-653.71,0.00020273,2]
[375086317,1753522248925,-460.0,0.00020273,2]
[375086319,1753522248936,-460.0,0.00020273,2]
[375086321,1753522248946,-460.0,0.00020273,2]
[375086323,1753522248956,-460.0,0.00020273,2]
[375086325,1753522248965,-1024.16,0.00020273,2]
[375086327,1753522248975,-460.0,0.00020273,2]
[375086329,1753522248984,-161.595943,0.00020273,2]
[375086331,1753522248993,-460.0,0.00020273,2]
[375086333,1753522249003,-161.595943,0.00020273,2]
[375086335,1753522249012,-531.82300881,0.00020273,2]
[375086337,1753522249022,-460.0,0.00020273,2]
[375086339,1753522249031,-963.76,0.00020273,2]
[375086341,1753522249040,-151.0,0.00020273,2]
[375086343,1753522249049,-460.0,0.00020273,2]
[375086345,1753522249058,-625.99,0.00020273,2]
[375086347,1753522249068,-460.0,0.00020273,2]
[375086349,1753522249077,-460.0,0.00020273,2]
[375086351,1753522249087,-552.13,0.00020273,2]
[375086353,1753522249096,-460.0,0.00020273,2]
[375086355,1753522249105,-1556.48,0.00020273,2]
[375086357,1753522249116,-460.0,0.00020273,2]
[375086359,1753522249125,-509.44,0.00020273,2]
[375086361,1753522249134,-900.37,0.00020273,2]
[375086363,1753522249144,-2548.54,0.00020273,2]
[375086365,1753522249154,-1206.65,0.00020273,2]
[375086368,1753522249164,-460.0,0.00020273,2]
[375086370,1753522249174,-460.0,0.00020273,2]
[375086372,1753522249183,-3341.87,0.00020273,2]
[375086374,1753522249192,-1171.81,0.00020273,2]
[375086376,1753522249201,-460.0,0.00020273,2]
[375086378,1753522249211,-460.0,0.00020273,2]
[375086380,1753522249220,-460.0,0.00020273,2]
[375086382,1753522249229,-1178.88,0.00020273,2]
[375086384,1753522249243,-460.0,0.00020273,2]
[375086386,1753522249252,-460.0,0.00020273,2]
[375086388,1753522249262,-460.0,0.00020273,2]
[375086390,1753522249271,-460.0,0.00020273,2]
[375086392,1753522249280,-5956.3,0.00020273,2]
[375086404,1753522249289,-3583.64,0.00020273,2]
[375086406,1753522249390,-1603.51,0.00020273,2]
[375086408,1753522249399,-460.0,0.00020273,2]
[375086410,1753522249408,-460.0,0.00020273,2]
[375086412,1753522249417,-2241.88,0.00020273,2]
[375086414,1753522249427,-460.0,0.00020273,2]
[375086416,1753522249437,-460.0,0.00020273,2]
[375086418,1753522249446,-789.36,0.00020273,2]
[375086420,1753522249455,-460.0,0.00020273,2]
[375086422,1753522249464,-797.04,0.00020273,2]
[375086424,1753522249478,-460.0,0.00020273,2]
[375086426,1753522249487,-460.0,0.00020273,2]
[375086428,1753522249497,-460.0,0.00020273,2]
[375086430,1753522249506,-460.0,0.00020273,2]
[375086432,1753522249515,-460.0,0.00020273,2]
[375086434,1753522249526,-460.0,0.00020273,2]
[375086436,1753522249534,-460.0,0.00020273,2]
[375086438,1753522249544,-619.5,0.00020273,2]
[375086440,1753522249555,-928.73,0.00020273,2]
[375086441,1753522249566,-460.0,0.00020273,2]
[375086444,1753522249576,-1034.45,0.00020273,2]
[375086446,1753522249585,-3165.41,0.00020273,2]
[375086447,1753522249595,-984.52,0.00020273,2]
[375086449,1753522249605,-4002.67,0.00020273,2]
[375086451,1753522249615,-3739.49,0.00020273,2]
[375086453,1753522249624,-573.35,0.00020273,2]
[375086455,1753522249634,-460.0,0.00020273,2]
[375086457,1753522249643,-1082.57,0.00020273,2]
[375086459,1753522249652,-460.0,0.00020273,2]
[375086461,1753522249661,-460.0,0.00020273,2]
[375086463,1753522249670,-918.24,0.00020273,2]
[375086465,1753522249679,-2703.07,0.00020273,2]
[375086467,1753522249689,-674.37,0.00020273,2]
[375086469,1753522249698,-460.0,0.00020273,2]
[375086471,1753522249708,-1584.35,0.00020273,2]
[375086473,1753522249718,-254.29528754,0.00020273,2]
[375086475,1753522249727,-726.62,0.00020273,2]
[375086477,1753522249737,-595.67,0.00020273,2]
[375086479,1753522249746,-460.0,0.00020273,2]
[375086481,1753522249755,-460.0,0.00020273,2]
[375086483,1753522249765,-2458.88,0.00020273,2]
[375086485,1753522249774,-460.0,0.00020273,2]
[375086487,1753522249784,-460.0,0.00020273,2]
[375086490,1753522249795,-460.0,0.00020273,2]
[375086492,1753522249804,-460.0,0.00020273,2]
[375086494,1753522249814,-460.0,0.00020273,2]
[375086496,1753522249823,-751.64,0.00020273,2]
[375086498,1753522249832,-296.85447282,0.00020273,2]
[375086500,1753522249841,-480.36570627,0.00020273,2]
[375086502,1753522249850,-460.0,0.00020273,2]
[375086504,1753522249860,-1908.96,0.00020273,2]
[375086506,1753522249869,-693.92,0.00020273,2]
[375086508,1753522249879,-835.25,0.00020273,2]
[375086510,1753522249888,-3327.66,0.00020273,2]
[375086512,1753522249897,-460.0,0.00020273,2]
[375086513,1753522249906,-3548.08,0.00020273,2]
[375086515,1753522249915,-407.04041082,0.00020273,2]
[375086518,1753522249926,-714.53,0.00020273,2]
[375086520,1753522249935,-1195.09,0.00020273,2]
[375086521,1753522249945,-11798.64,0.00020273,2]
[375086524,1753522249955,-491.19,0.00020273,2]
[375086526,1753522249966,-562.2,0.00020273,2]
[375086528,1753522249975,-460.0,0.00020273,2]
[375086530,1753522249984,-460.0,0.00020273,2]
[375086532,1753522249993,-594.41,0.00020273,2]
[375086533,1753522250003,-460.0,0.00020273,2]
[375086535,1753522250012,-685.85,0.00020273,2]
[375086537,1753522250022,-1737.36,0.00020273,2]
[375086539,1753522250031,-930.64,0.00020273,2]
[375086541,1753522250040,-460.0,0.00020273,2]
[375086543,1753522250049,-151.0,0.00020274,2]
[375086545,1753522250058,-596.0,0.00020274,2]
[375086547,1753522250067,-151.0,0.00020274,2]
[375086549,1753522250076,-151.92336044,0.00020274,2]
[375086551,1753522250086,-151.0,0.00020274,2]
[375086553,1753522250095,-151.0,0.00020274,2]
[375086555,1753522250104,-151.0,0.00020274,2]
[375086557,1753522250114,-151.0,0.00020274,2]
[375086559,1753522250123,-151.0,0.00020274,2]
[375086561,1753522250133,-151.0,0.00020274,2]
[375086563,1753522250142,-151.0,0.00020274,2]
[375086565,1753522250151,-151.0,0.00020274,2]
[375086567,1753522250160,-151.0,0.00020274,2]
[375086569,1753522250170,-528.0,0.00020274,2]
[375086571,1753522250179,-152.98419751,0.00020274,2]
[375086573,1753522250189,-151.0,0.00020274,2]
[375086575,1753522250198,-151.28167398,0.00020274,2]
[375086577,1753522250208,-151.00525167,0.00020274,2]
[375086579,1753522250217,-151.0,0.00020274,2]
[375086581,1753522250227,-151.0,0.00020274,2]
[375086583,1753522250235,-151.0,0.00020274,2]
[375086585,1753522250245,-151.0,0.00020274,2]
[375086587,1753522250254,-151.0,0.00020274,2]
[375086589,1753522250263,-151.0,0.00020274,2]
[375086591,1753522250272,-151.0,0.00020274,2]
[375086593,1753522250282,-203.0,0.00020305,2]
[375086595,1753522250291,-216.36913112,0.00020321,2]
[375086597,1753522250300,-724.99225504,0.00020321,2]
[375086611,1753522250424,-275.00774496,0.00020321,2]
[375086613,1753522250433,-369.0,0.00020342,2]
[375086615,1753522250442,-203.0,0.00020424,2]
[375086617,1753522250451,-369.0,0.00020444,2]
[375086619,1753522250460,-246.81739548,0.00020447,2]
[375086621,1753522250470,-351.8,0.00020451,3]
[375086623,1753522250484,-369.0,0.00020484,2]
[375086625,1753522250494,-151.0,0.000205,3]
[375086627,1753522250503,-369.0,0.00020517,2]
[375086629,1753522250512,-1000.0,0.00020521,2]
[375086631,1753522250522,-1000.0,0.00020521,2]
[375086633,1753522250532,-1001.72606197,0.00020521,2]
[375086635,1753522250541,-203.954756,0.00020547,2]
[375086637,1753522250550,-151.0,0.00020547,2]
[375086640,1753522250562,-151.0,0.00020547,2]
[375086642,1753522250571,-151.0,0.00020547,2]
[375086644,1753522250580,-151.0,0.00020547,2]
[375086645,1753522250589,-460.0,0.00020547,2]
[375086647,1753522250599,-490.1,0.00020547,2]
[375086649,1753522250609,-423.49253224,0.00020547,2]
[375086652,1753522250619,-460.0,0.00020547,2]
[375086653,1753522250628,-760.947282,0.00020547,2]
[375086655,1753522250637,-760.947292,0.00020547,2]
[375086658,1753522250648,-151.0,0.00020547,2]
[375086660,1753522250656,-460.0,0.00020547,2]
[375086662,1753522250667,-460.0,0.00020547,2]
[375086663,1753522250676,-151.0,0.00020547,2]
[375086666,1753522250686,-151.0,0.00020547,2]
[375086667,1753522250695,-460.0,0.00020547,2]
[375086669,1753522250704,-151.0,0.00020547,2]
[375086672,1753522250714,-460.0,0.00020547,2]
[375086673,1753522250723,-151.0,0.00020547,2]
[375086676,1753522250732,-178.875113,0.00020547,2]
[375086677,1753522250742,-460.0,0.00020547,2]
[375086680,1753522250751,-460.0,0.00020547,2]
[375086681,1753522250760,-661.68,0.00020547,2]
[375086683,1753522250770,-460.0,0.00020547,2]
[375086685,1753522250779,-151.0,0.00020547,2]
[375086687,1753522250788,-460.0,0.00020547,2]
[375086689,1753522250797,-460.0,0.00020547,2]
[375086691,1753522250807,-460.0,0.00020547,2]
[375086693,1753522250816,-582.45,0.00020547,2]
[375086695,1753522250826,-460.0,0.00020547,2]
[375086697,1753522250835,-1208.67,0.00020547,2]
[375086699,1753522250844,-460.0,0.00020547,2]
[375086701,1753522250854,-460.0,0.00020547,2]
[375086703,1753522250863,-6.14097563,0.00020547,2]
[375086753,1753522251319,-111.38832094,0.00019178,2]
[375086789,1753522251647,-454.12732989,0.00019178,2]
[375086791,1753522251657,-460.0,0.00019178,2]
[375086793,1753522251666,-500.0,0.00019178,2]
[375086795,1753522251677,-648.0,0.00019969,2]
[375086797,1753522251685,-971.26003164,0.00020547,2]
[375086799,1753522251697,-32.70899273,0.00020547,2]
[375086801,1753522251706,-460.0,0.00020547,2]
[375086803,1753522251715,-460.0,0.00020547,2]
[375086805,1753522251724,-460.0,0.00020547,2]
[375086807,1753522251734,-460.0,0.00020547,2]
[375086809,1753522251743,-460.0,0.00020547,2]
[375086811,1753522251752,-151.0,0.00020547,2]
[375086813,1753522251761,-151.0,0.00020547,2]
[375086815,1753522251771,-460.0,0.00020547,2]
[375086817,1753522251781,-653.71,0.00020547,2]
[375086819,1753522251791,-460.0,0.00020547,2]
[375086821,1753522251800,-460.0,0.00020547,2]
[375086823,1753522251809,-460.0,0.00020547,2]
[375086825,1753522251819,-460.0,0.00020547,2]
[375086827,1753522251829,-1024.16,0.00020547,2]
[375086829,1753522251839,-460.0,0.00020547,2]
[375086831,1753522251848,-460.0,0.00020547,2]
[375086833,1753522251858,-161.595943,0.00020547,2]
[375086835,1753522251867,-161.595943,0.00020547,2]
[375086837,1753522251876,-161.595943,0.00020547,2]
[375086839,1753522251886,-161.595943,0.00020547,2]
[375086841,1753522251896,-460.0,0.00020547,2]
[375086843,1753522251905,-963.76,0.00020547,2]
[375086845,1753522251914,-151.0,0.00020547,2]
[375086847,1753522251923,-245.044921,0.00020547,2]
[375086849,1753522251933,-460.0,0.00020547,2]
[375086851,1753522251943,-625.99,0.00020547,2]
[375086853,1753522251952,-460.0,0.00020547,2]
[375086855,1753522251962,-164.80349433,0.00020547,2]
[375087031,1753522253770,-295.19650567,0.00020547,2]
[375087033,1753522253779,-552.13,0.00020547,2]
[375087035,1753522253789,-309.27996163,0.00020547,2]
[375087037,1753522253799,-1556.48,0.00020547,2]
[375087039,1753522253808,-460.0,0.00020547,2]
[375087040,1753522253817,-2548.54,0.00020547,2]
[375087042,1753522253827,-1206.65,0.00020547,2]
[375087045,1753522253836,-460.0,0.00020547,2]
[375087046,1753522253846,-460.0,0.00020547,2]
[375087047,1753522253855,-3341.87,0.00020547,2]
[375087048,1753522253864,-1171.81,0.00020547,2]
[375087049,1753522253873,-460.0,0.00020547,2]
[375087050,1753522253882,-460.0,0.00020547,2]
[375087051,1753522253891,-460.0,0.00020547,2]
[375087052,1753522253900,-460.0,0.00020547,2]
[375087053,1753522253909,-173.25823035,0.00020547,2]
[375087054,1753522253921,-286.74176965,0.00020547,2]
[375087055,1753522253930,-460.0,0.00020547,2]
[375087056,1753522253939,-460.0,0.00020547,2]
[375087057,1753522253949,-5081.4848595,0.00020547,2]
[375087058,1753522253960,-874.8151405,0.00020547,2]
[375087059,1753522253970,-101.41824704,0.00020547,2]
[375087203,1753523062930,-151.0,0.000262,120]
[375087204,1753523062955,-3003.41513957,0.00027,120]
[375087205,1753523062977,-187.1902418,0.00027,60]
[375087206,1753523062999,-1126.71053,0.00027,120]
[375087207,1753523063022,-151.0,0.000273,120]
[375087208,1753523063044,-151.59714103,0.00027397,120]
[375087209,1753523063065,-500.0,0.00027397,120]
[375087210,1753523063086,-500.0,0.00027397,120]
[375087211,1753523063110,-500.0,0.00027397,120]
[375087212,1753523063131,-500.0,0.00027397,120]
[375087213,1753523063153,-500.0,0.00027397,120]
[375087214,1753523063174,-500.0,0.00027397,120]
[375087215,1753523063196,-500.0,0.00027397,120]
[375087216,1753523063217,-500.0,0.00027397,120]
[375087217,1753523063239,-383.49038265,0.00027397,120]
[375087218,1753523063262,-256.932359,0.00027397,120]
[375087219,1753523063285,-2234.49169138,0.00027403,120]
[375087220,1753523063308,-1200.00525838,0.000275,120]
[375087221,1753523063332,-1444.0,0.00027589,120]
[375087222,1753523063355,-341.90525075,0.00028,120]
[375087223,1753523063379,-1126.71053,0.000283,120]
[375087224,1753523063401,-151.0,0.000284,120]
[375087225,1753523063425,-438.0407,0.00029,120]
[375087226,1753523063448,-151.0,0.000295,120]
[375087227,1753523063471,-1126.71053,0.000296,120]
[375087228,1753523063494,-287.54269097,0.0003,120]
[375087229,1753523063517,-312.16666667,0.0003,120]
[375087230,1753523063540,-151.0,0.000306,120]
[375087231,1753523063565,-1126.71053,0.000309,120]
[375087232,1753523063589,-215.9757969,0.00031,120]
[375087233,1753523063613,-526.41699184,0.00031,120]
[375087234,1753523063637,-151.0,0.000317,120]
[375087235,1753523063662,-256.932359,0.00031963,120]
[375087236,1753523063687,-1126.71053,0.000322,120]
[375087237,1753523063711,-652.99192168,0.00032274,120]
[375087238,1753523063735,-151.0,0.000328,120]
[375087239,1753523063758,-1000.0,0.00033,120]
[375087240,1753523063781,-438.0407,0.000333,120]
[375087241,1753523063805,-1126.71053,0.000335,120]
[375087242,1753523063934,-151.0,0.000339,120]
[375087243,1753523063958,-1126.71053,0.000348,120]
[375087244,1753523063980,-1000.0,0.00034999,120]
[375087245,1753523064005,-151.0,0.00035,120]
[375087246,1753523064029,-151.0,0.000361,120]
[375087247,1753523064052,-1126.71053,0.000361,120]
[375087248,1753523064076,-1643.05,0.00036164,120]
[375087249,1753523064099,-348.53977714,0.000365,120]
[375087250,1753523064126,-256.932359,0.0003653,120]
[375087251,1753523064151,-1000.0,0.00036999,120]
[375087252,1753523064381,-768.82098952,0.00037,60]
[375087253,1753523064406,-151.0,0.000372,120]
[375087254,1753523064430,-1126.71055,0.000374,120]
[375087255,1753523064455,-150.0,0.000375,112]
[375087256,1753523064477,-438.0407,0.000376,120]
[375087257,1753523064501,-151.0,0.000383,120]
[375087258,1753523064525,-10006.52000208,0.000385,60]
[375087259,1753523064548,-80000.0,0.0003853,90]
[375087260,1753523064571,-1643.05,0.00038904,120]
[375087261,1753523064594,-3814.29839262,0.00039,120]
[375087262,1753523064617,-214.8008262,0.00039,120]
[375087263,1753523064640,-176857.67845312,0.00039337,120]
[375087264,1753523064663,-151.0,0.000394,120]
[375087265,1753523064686,-30000.0,0.0003945,90]
[375087266,1753523064710,-2021.31074247,0.000396,120]
[375087267,1753523064733,-1435.76802862,0.0003974,120]
[375087268,1753523064755,-1435.76802862,0.00039756,120]
[375087269,1753523064777,-1435.76802862,0.00039759,120]
[375087270,1753523064800,-200.0,0.00039825,120]
[375087271,1753523064823,-166.0,0.00039871,90]
[375087272,1753523064847,-200.0,0.00039884,120]
[375087273,1753523064869,-5000.0,0.000399,120]
[375087274,1753523064892,-200.0,0.00039975,120]
[375087275,1753523064922,-1435.76802862,0.00039977,120]
[375087276,1753523064945,-2000.0,0.0003999,120]
[375087277,1753523064968,-1000.0,0.00039999,60]
[375087278,1753523064990,-1000.0,0.00039999,90]
[375087279,1753523065013,-1000.0,0.00039999,120]
[375087280,1753523065036,-236.04258654,0.0004,120]
[375087281,1753523065059,-800.0,0.0004,120]
[375087282,1753523065080,-500.0,0.0004,120]
[375087283,1753523065105,-10000.0,0.0004,120]
[375087284,1753523065129,-200.0,0.0004,120]
[375087285,1753523065152,-665.02801351,0.0004,120]
[375087286,1753523065178,-177.06236616,0.0004,120]
[375087287,1753523065201,-231.25662632,0.0004,120]
[375087288,1753523065224,-214.8008262,0.0004,120]
[375087289,1753523065248,-894.03839727,0.0004,120]
[375087290,1753523065273,-155.0,0.0004,120]
[375087291,1753523065296,-526.41699184,0.0004,120]
[375087292,1753523065319,-312.16666667,0.0004,120]
[375087293,1753523065343,-151.0,0.000405,120]
[375087294,1753523065380,-699.4,0.00041041,120]
[375087295,1753523065407,-699.4,0.00041041,120]
[375087296,1753523065430,-699.4,0.00041041,120]
[375087297,1753523065453,-699.4,0.00041041,120]
[375087298,1753523065478,-434.31,0.00041096,120]
[375087299,1753523065502,-256.932359,0.00041096,120]
[375087300,1753523065526,-300.0,0.000414,120]
[375087301,1753523065549,-151.0,0.000416,120]
[375087302,1753523065573,-1643.05,0.00041643,120]
[375087303,1753523065596,-500.0,0.00041853,60]
[375087304,1753523065619,-1750.0,0.000419,120]
[375087305,1753523065643,-1000.0,0.00042,120]
[375087306,1753523065667,-1000.0,0.00042,120]
[375087307,1753523065690,-888.52462485,0.00042,120]
[375087308,1753523065713,-15000.0,0.00042,120]
[375087309,1753523065736,-1759.7801566,0.000424,120]
[375087310,1753523065759,-2000.0,0.0004249,90]
[375087311,1753523065782,-151.0,0.000428,120]
[375087312,1753523065804,-500.0,0.00042949,60]
[375087313,1753523065826,-506.78,0.00043,120]
[375087314,1753523065849,-604.333,0.00043434,67]
[375087315,1753523065872,-5000.0,0.0004349,90]
[375087316,1753523065895,-166.0,0.00043496,90]
[375087317,1753523065918,-1000.0,0.000438,90]
[375087318,1753523065941,-270.0,0.000438,90]
[375087319,1753523065964,-151.0,0.000439,120]
[375087320,1753523065988,-1892.11558542,0.00044,120]
[375087321,1753523066012,-1000.0,0.00044,120]
[375087322,1753523066034,-15000.0,0.00044,120]
[375087323,1753523066058,-500.0,0.00044045,60]
[375087324,1753523066080,-399.72366447,0.000442,120]
[375087325,1753523066199,-1643.05,0.00044383,120]
[375087326,1753523066224,-5000.0,0.0004449,90]
[375087327,1753523066246,-12780.39199533,0.000445,120]
[375087328,1753523066269,-2000.0,0.000449,120]
[375087329,1753523066292,-1141.09705581,0.00045,120]
[375087330,1753523066318,-999.82487713,0.00045,120]
[375087331,1753523066341,-5070.87701777,0.00045,120]
[375087332,1753523066366,-5077.79628855,0.00045,120]
[375087333,1753523066392,-151.0,0.00045,120]
[375087334,1753523066418,-5000.0,0.0004549,90]
[375087335,1753523066442,-1000.0,0.00046,120]
[375087336,1753523066467,-15000.0,0.00046,120]
[375087337,1753523066491,-151.0,0.000461,120]
[375087338,1753523066515,-5000.0,0.0004649,90]
[375087339,1753523066624,200.0,0.00040215,120]
[375087340,1753523066779,200.0,0.00040215,120]
[375087341,1753523072317,1000.0,0.00039999,120]
[375087344,1753523141123,-150.0,0.000189,2]
[375087345,1753523141148,-300.0,0.00019077,2]
[375087346,1753523141169,-234.32558927,0.00019078,2]
[375087347,1753523141190,-30000.0,0.00019078,2]
[375087348,1753523141212,-460.0,0.00019178,2]
[375087349,1753523141232,-460.0,0.00019178,2]
[375087350,1753523141253,-509.81638835,0.00019178,2]
[375087351,1753523141274,-460.0,0.00019178,2]
[375087352,1753523141297,-497.28701315,0.00019178,2]
[375087353,1753523141318,-460.0,0.00019178,2]
[375087354,1753523141339,-460.0,0.00019178,2]
[375087355,1753523141361,-460.0,0.00019178,2]
[375087356,1753523141382,-460.0,0.00019178,2]
[375087357,1753523141402,-461.20519551,0.00019178,2]
[375087358,1753523141423,-460.0,0.00019178,2]
[375087359,1753523141442,-494.15987481,0.00019178,2]
[375087360,1753523141463,-460.0,0.00019178,2]
[375087361,1753523141483,-434.79185302,0.00019178,2]
[375087362,1753523141504,-502.32230735,0.00019178,2]
[375087363,1753523141523,-460.0,0.00019178,2]
[375087364,1753523141543,-460.0,0.00019178,2]
[375087365,1753523141564,-460.0,0.00019178,2]
[375087366,1753523141584,-153.40204311,0.00019178,2]
[375087367,1753523141604,-460.0,0.00019178,2]
[375087368,1753523141624,-460.0,0.00019178,2]
[375087369,1753523141643,-460.0,0.00019178,2]
[375087370,1753523141663,-460.0,0.00019178,2]
[375087371,1753523141683,-460.0,0.00019178,2]
[375087372,1753523141705,-460.0,0.00019178,2]
[375087373,1753523141725,-460.0,0.00019178,2]
[375087374,1753523141745,-460.0,0.00019178,2]
[375087375,1753523141767,-460.0,0.00019178,2]
[375087376,1753523141788,-460.0,0.00019178,2]
[375087377,1753523141810,-460.0,0.00019178,2]
[375087378,1753523141830,-460.0,0.00019178,2]
[375087379,1753523141851,-449.74177316,0.00019178,2]
[375087380,1753523141874,-563.28,0.00019178,2]
[375087381,1753523141894,-460.0,0.00019178,2]
[375087382,1753523141913,-460.0,0.00019178,2]
[375087383,1753523141933,-460.0,0.00019178,2]
[375087384,1753523141952,-460.0,0.00019178,2]